bitfinex/quotes_ETHUSD_20220105
["timestamp","ask_amount","ask_price","bid_price","bid_amount"]
[1641413846310,0.84110652,3640.6,3640.1,0.01069972]
[1641413846510,0.01534743,3640.3,3640.1,0.01069972]
[1641413846715,0.82405382,3640.6,3640.1,0.01069972]
[1641413846716,2.32944849,3640.5,3640.1,0.01069972]
[1641413846960,7.96477901,3640.2,3640.1,0.01069972]
[1641413847160,2.31296421,3640.5,3638.4,0.01246638]
[1641413847161,6.25,3640.1,3638.4,0.01246638]
[1641413847567,0.01364216,3640.0,3639.2,0.36099526]
[1641413847760,0.01364216,3640.0,3638.4,1.11224881]
[1641413847961,0.01307374,3639.9,3638.4,1.11224881]
[1641413848162,0.01307374,3639.9,3638.5,0.328]
[1641413848362,0.01250531,3639.8,3639.1,0.01212215]
[1641413848762,0.81802236,3640.6,3640.1,0.33186557]
[1641413849064,0.00397897,3640.5,3639.2,0.00341054]
[1641413849465,0.00341055,3640.4,3639.2,0.00341054]
[1641413849666,0.01204672,3640.3,3639.2,0.00341054]
[1641413849864,3.35787312,3640.3,3639.0,0.38114289]
[1641413850070,0.68708,3639.8,3639.0,0.38114289]
[1641413850264,0.68708,3639.8,3637.7,0.01230235]
[1641413850265,7.95,3639.6,3637.7,0.01230235]
[1641413850468,7.95,3639.6,3636.8,2.11497933]
[1641413850469,0.01270951,3639.4,3636.8,2.11497933]
[1641413850705,0.328,3639.3,3637.8,0.0073895]
[1641413850904,0.328,3639.3,3637.0,0.0074895]
[1641413850905,7.95,3638.5,3637.0,0.0074895]
[1641413851107,0.6874281,3637.8,3637.1,0.00397897]
[1641413851310,0.6874281,3637.8,3636.8,0.9444478]
[1641413851311,7.95,3637.3,3636.8,0.9444478]
[1641413851506,7.95,3637.1,3636.6,5.77928357]
[1641413851710,2.36075949,3637.0,3635.9,6.17]
[1641413851911,0.328,3636.9,3635.9,6.17]
[1641413852107,7.95,3636.7,3633.7,0.68772]
[1641413852310,0.39774818,3635.5,3633.9,0.37576835]
[1641413852509,0.39774818,3635.5,3634.2,1.04142524]
[1641413852711,1.41225344,3635.9,3634.2,1.04142524]
[1641413852712,0.3,3635.9,3634.2,1.04142524]
[1641413852910,1.3,3635.9,3634.2,1.04142524]
[1641413853107,0.6,3635.9,3634.2,1.04142524]
[1641413853307,0.6878405,3635.5,3634.2,1.04142524]
[1641413853708,0.6878405,3635.5,3634.8,1.18490951]
[1641413854577,0.72376358,3635.9,3634.8,1.18490951]
[1641413854975,0.72376358,3635.9,3635.0,0.3493496]
[1641413855378,0.72376358,3635.9,3635.1,0.00909478]
[1641413855576,0.6877033,3635.9,3635.1,0.00909478]
[1641413855776,1.64330423,3635.4,3635.1,0.00909478]
[1641413856179,4.34889415,3636.5,3635.3,0.01271458]
[1641413856477,4.34889415,3636.5,3636.4,5.68333171]
[1641413856683,4.34889415,3636.9,3636.4,1.18262466]
[1641413856882,4.34889415,3636.9,3636.4,0.00170527]
[1641413857082,4.34889415,3636.9,3636.5,0.00113685]
[1641413857282,4.34889415,3636.9,3635.4,0.00738951]
[1641413857482,0.6876,3637.0,3635.0,0.0096632]
[1641413857683,0.44915731,3637.1,3635.8,0.45453052]
[1641413857886,0.00113684,3636.9,3635.8,1.81149334]
[1641413858084,0.00170527,3637.0,3635.9,0.00454739]
[1641413858506,0.3,3637.1,3635.9,0.00454739]
[1641413858507,0.3,3636.5,3635.9,0.00454739]
[1641413858703,0.6875646,3636.6,3635.0,0.0096632]
[1641413858904,0.3,3636.6,3635.0,0.0096632]
[1641413859104,4.35059942,3637.0,3635.0,0.02178231]
[1641413859505,0.6875452,3636.7,3635.0,0.02178231]
[1641413860105,2.36525792,3636.9,3635.1,0.328]
[1641413860109,0.00113684,3636.9,3635.1,0.328]
[1641413860510,0.00113684,3636.9,3635.2,0.00852635]
[1641413860705,0.00113684,3636.9,3635.3,0.328]
[1641413860907,0.1822,3638.0,3636.8,0.01251104]
[1641413861110,0.98908618,3639.8,3637.8,0.0128489]
[1641413861308,0.98908618,3639.8,3638.7,0.01254064]
[1641413861309,3.541e-05,3639.1,3638.7,0.01254064]
[1641413861510,3.541e-05,3639.1,3639.0,0.01261914]
[1641413861711,8.05473027,3640.9,3639.1,7.95]
[1641413861957,3.88011445,3640.2,3640.1,0.01277703]
[1641413862158,3.88011445,3640.2,3640.0,0.328]
[1641413862362,3.89887243,3640.2,3639.7,0.328]
[1641413862558,0.01875798,3640.2,3639.7,0.328]
[1641413862760,0.01875798,3640.2,3638.9,0.28690607]
[1641413863164,0.39753009,3640.1,3638.9,0.28690607]
[1641413863361,0.71853022,3640.2,3638.8,5.4963]
[1641413863562,0.01762113,3640.0,3638.8,5.4963]
[1641413863762,0.01818955,3640.1,3638.8,5.4963]
[1641413863966,0.01705271,3639.9,3638.8,5.4963]
[1641413864268,0.01648428,3639.8,3638.8,5.4963]
[1641413864665,0.6869736,3640.3,3638.8,5.4963]
[1641413864666,1.12607661,3640.3,3638.8,5.4963]
[1641413864863,1.12607661,3640.3,3638.9,0.00454739]
[1641413865065,0.37885507,3640.0,3638.9,0.00454739]
[1641413865266,0.01284991,3639.7,3638.9,0.00454739]
[1641413865466,0.01284991,3639.7,3638.1,0.00909477]
[1641413865711,1.3745119,3639.2,3637.9,0.01023162]
[1641413865907,0.00113685,3639.9,3637.9,0.02245663]
[1641413866313,0.00113685,3639.9,3638.0,0.0096632]
[1641413866510,1.66995384,3639.1,3638.2,7.2]
[1641413866710,1.66995384,3639.1,3638.2,7.528]
[1641413866910,1.66995384,3639.1,3638.3,0.41484265]
[1641413867110,1.66995384,3639.1,3638.8,0.01282855]
[1641413867315,3.33318148,3639.7,3639.0,7.95]
[1641413867612,3.33318148,3639.7,3639.6,9.2232567]
[1641413867813,1.67431639,3639.9,3639.6,0.34076108]
[1641413868011,1.67431639,3639.9,3639.6,0.74527816]
[1641413868214,1.67431639,3639.9,3639.7,0.00113685]
[1641413868410,1.67431639,3639.9,3639.8,0.328]
[1641413868810,0.00113684,3640.1,3640.0,9.14975471]
[1641413869012,0.00113684,3640.1,3640.0,1.19975471]
[1641413869450,0.00113684,3640.1,3639.8,0.328]
[1641413870651,0.00113684,3640.1,3639.9,1.34643878]
[1641413871354,0.00113684,3640.1,3638.9,11.39970337]
[1641413871652,3.47138145,3641.4,3639.9,1.15209479]
[1641413871653,0.00170527,3640.0,3639.9,1.15209479]
[1641413871856,0.00170527,3640.0,3639.8,3.48633298]
[1641413872254,0.00113685,3639.9,3639.8,3.48633298]
[1641413872657,4.25795793,3639.9,3639.8,3.48633298]
[1641413872957,7.95,3639.7,3639.1,3.72493985]
[1641413873225,0.6870676,3639.7,3639.1,3.72493985]
[1641413873411,0.6870676,3639.7,3639.2,0.00284212]
[1641413873813,0.00795793,3639.9,3639.2,0.00284212]
[1641413874816,2.293552,3639.9,3639.2,0.00284212]
[1641413875016,2.293552,3639.9,3637.9,0.01023162]
[1641413875216,0.6871648,3639.1,3637.9,0.01023162]
[1641413875416,1.3743296,3639.5,3637.9,1.22361348]
[1641413875417,2.68842975,3639.4,3637.9,1.22361348]
[1641413875616,2.38842975,3639.4,3638.6,0.38796759]
[1641413875815,1.3743296,3639.5,3638.6,0.38796759]
[1641413876017,1.3743296,3639.5,3638.7,0.00568423]
[1641413876216,0.6871101,3639.4,3638.7,0.00568423]
[1641413876415,2.13085571,3639.6,3638.0,0.0096632]
[1641413876617,1.386,3639.5,3638.0,0.0096632]
[1641413876816,0.82437439,3639.2,3638.0,0.0096632]
[1641413877456,2.89123574,3639.2,3638.0,0.0096632]
[1641413877659,2.89123574,3639.2,3637.4,0.01307374]
[1641413877660,2.21041515,3639.0,3637.4,0.01307374]
[1641413877858,2.81489529,3638.9,3637.4,0.01307374]
[1641413878058,0.0126284,3638.6,3637.4,0.01307374]
[1641413878258,0.37157464,3637.6,3636.7,0.0170527]
[1641413878660,0.82480358,3637.3,3636.7,0.0170527]
[1641413878857,0.55000358,3637.3,3636.7,0.0170527]
[1641413879056,0.6874876,3637.4,3636.6,0.01762113]
[1641413879657,0.37157464,3637.6,3636.6,0.37007314]
[1641413879861,17.136,3637.9,3636.6,0.37007314]
[1641413879862,1.386,3637.9,3636.6,0.37007314]
[1641413880059,2.10365469,3638.6,3636.7,0.03003808]
[1641413880262,0.82477616,3637.4,3636.7,0.03003808]
[1641413880462,0.5,3638.5,3637.3,1.16641093]
[1641413880708,0.3927726,3638.8,3637.8,0.37786941]
[1641413880910,0.82444364,3638.9,3637.8,0.37786941]
[1641413881131,0.82444364,3638.9,3637.9,0.01023162]
[1641413881717,2.07037718,3638.8,3637.9,0.01023162]
[1641413881915,1.386,3638.3,3637.4,0.01307374]
[1641413882115,2.19740259,3638.2,3637.1,0.01477901]
[1641413882315,2.19740259,3638.2,3636.6,0.01762113]
[1641413882515,1.386,3638.1,3636.6,0.01762113]
[1641413882717,2.21498212,3638.0,3636.6,0.01762113]
[1641413882916,2.51498212,3638.0,3636.6,0.01762113]
[1641413883116,3.51498212,3638.0,3636.6,0.01762113]
[1641413883316,2.21498212,3638.0,3636.6,0.01762113]
[1641413883517,0.33535608,3637.6,3636.6,0.01762113]
[1641413883920,1.386,3638.1,3636.6,0.01762113]
[1641413883921,2.0733605,3638.1,3636.6,0.01762113]
[1641413884317,1.386,3638.0,3636.6,0.01762113]
[1641413884589,0.82483271,3637.2,3636.6,0.01762113]
[1641413884786,2.34080794,3637.1,3636.6,0.01762113]
[1641413884987,0.6875843,3637.0,3636.6,0.01762113]
[1641413885187,2.05797101,3636.9,3636.6,0.01762113]
[1641413885386,0.41685429,3636.8,3636.6,0.01762113]
[1641413885594,7.95,3636.6,3635.9,6.17]
[1641413885789,2.39264756,3636.5,3635.9,6.17]
[1641413885987,0.6877322,3636.4,3635.9,5.38941054]
[1641413886188,2.36159169,3636.3,3635.9,5.38941054]
[1641413886391,2.96329696,3636.3,3635.9,4.45641054]
[1641413886592,7.95,3636.1,3635.2,0.28690607]
[1641413886788,7.95,3636.1,3634.3,0.28690607]
[1641413886989,7.95,3636.1,3635.3,0.00397896]
[1641413886990,1.0,3636.0,3635.3,0.00397896]
[1641413887590,0.35434633,3635.4,3635.3,0.00397896]
[1641413887893,0.35434633,3635.4,3634.3,0.28690607]
[1641413887894,0.0039,3634.9,3634.3,0.28690607]
[1641413888094,0.0039,3634.9,3633.7,1.28690607]
[1641413888307,0.0039,3634.9,3634.4,0.00511581]
[1641413888714,0.0039,3634.9,3633.7,1.28690607]
[1641413888715,0.36209586,3633.8,3633.7,1.28690607]
[1641413888905,0.16609586,3633.8,3633.7,1.28690607]
[1641413889108,0.46609586,3633.8,3633.7,1.28690607]
[1641413889306,0.46609586,3633.8,3633.7,1.0]
[1641413889707,0.46609586,3633.8,3633.7,0.95]
[1641413890308,7.95,3633.7,3633.6,0.3566]
[1641413890513,0.50509802,3633.8,3633.6,0.3566]
[1641413890710,0.50509802,3633.8,3631.7,4.65637586]
[1641413890711,7.95,3633.6,3631.7,4.65637586]
[1641413890910,0.6883178,3633.3,3631.7,4.65637586]
[1641413891113,0.6883178,3633.3,3631.2,6.20950115]
[1641413891114,0.6883178,3633.3,3632.8,0.00454739]
[1641413891312,0.3963104,3633.2,3632.8,0.00454739]
[1641413891721,0.6963104,3633.2,3632.8,0.01527021]
[1641413891980,0.07278732,3632.4,3631.2,0.001]
[1641413892181,0.6883827,3632.8,3631.2,0.001]
[1641413892381,0.38113949,3631.7,3631.3,0.00852635]
[1641413892582,0.38113949,3631.7,3631.6,4.60637586]
[1641413892781,0.68113949,3631.7,3631.6,7.586e-05]
[1641413892982,7.95,3631.6,3631.1,1.10319809]
[1641413893180,10.6386162,3631.6,3631.1,1.10319809]
[1641413893379,8.9386162,3631.6,3631.2,7.369e-05]
[1641413893579,1.26863158,3631.5,3631.2,7.369e-05]
[1641413893779,0.328,3631.4,3631.2,7.369e-05]
[1641413894078,7.95,3631.3,3631.1,0.97377178]
[1641413894282,0.328,3631.2,3631.1,0.97377178]
[1641413894481,0.328,3631.2,3630.5,0.737849]
[1641413894482,0.00106315,3631.4,3630.5,0.737849]
[1641413894879,0.00106315,3631.4,3631.3,0.00139446]
[1641413895079,0.00106315,3631.4,3631.3,1.2259226]
[1641413895279,0.00106315,3631.4,3631.3,1.57259788]
[1641413895280,0.00113684,3631.4,3631.3,1.57259788]
[1641413895484,0.26113684,3631.5,3631.3,1.2259226]
[1641413896611,0.09523684,3631.5,3631.3,1.2259226]
[1641413896816,0.09523684,3631.5,3631.4,8.35210627]
[1641413897018,0.07633684,3631.5,3631.4,8.35210627]
[1641413897214,0.07633684,3633.1,3631.4,8.35210627]
[1641413897614,0.07900004,3633.1,3631.4,8.35210627]
[1641413897817,0.07900004,3633.1,3632.3,1.21868203]
[1641413898214,0.07900004,3633.1,3631.4,8.35210627]
[1641413898521,0.07900004,3633.1,3632.0,0.43610405]
[1641413898716,3.1441,3634.7,3632.1,0.328]
[1641413898915,0.01637074,3634.9,3632.7,0.01227716]
[1641413898916,0.0039,3634.9,3632.7,0.01227716]
[1641413899114,0.00341054,3633.7,3632.7,0.01227716]
[1641413899318,0.00341054,3633.7,3632.8,0.32970527]
[1641413899560,0.00284212,3633.6,3632.9,1.34805574]
[1641413899767,0.00284212,3633.6,3633.5,5.67045775]
[1641413899965,0.0039,3634.9,3633.5,5.99845775]
[1641413900367,0.00738951,3634.4,3633.5,5.99845775]
[1641413900566,0.00738951,3634.4,3634.3,6.10242894]
[1641413900866,0.0039,3634.9,3634.3,6.10242894]
[1641413900867,0.0039,3634.9,3634.3,1.10242894]
[1641413901168,0.0096632,3634.8,3633.1,7.95]
[1641413901365,0.0096632,3634.8,3632.9,0.00113684]
[1641413901565,0.01260958,3635.0,3632.9,0.00113684]
[1641413901566,0.00909478,3634.7,3632.9,0.00113684]
[1641413901766,0.00909478,3634.7,3632.7,0.00227369]
[1641413901970,0.01260958,3635.0,3632.7,0.00227369]
[1641413901971,0.51247191,3634.2,3632.7,0.00227369]
[1641413902165,0.51247191,3634.2,3632.9,0.37128289]
[1641413902367,0.00568424,3634.1,3632.9,0.37128289]
[1641413902765,0.00511581,3634.0,3632.9,0.37128289]
[1641413903217,0.00454739,3633.9,3633.8,0.35349037]
[1641413903419,0.00454739,3633.9,3633.4,1.35582386]
[1641413903820,0.00397897,3633.8,3633.4,1.35582386]
[1641413904024,7.897e-05,3633.8,3633.5,0.328]
[1641413904219,1.054e-05,3633.7,3633.6,8.278]
[1641413904419,1.054e-05,3633.7,3633.6,8.27905788]
[1641413904724,0.35709981,3636.2,3635.2,0.41254785]
[1641413904921,0.01278997,3635.4,3633.9,0.328]
[1641413905120,0.01278997,3635.4,3634.4,1.30413068]
[1641413905525,0.14680529,3635.9,3634.4,1.30413068]
[1641413905924,0.0080369,3635.8,3634.4,1.30413068]
[1641413906323,0.00746847,3635.7,3634.4,1.30413068]
[1641413906622,0.00690005,3635.6,3635.1,0.38942693]
[1641413907080,0.00633163,3635.5,3635.1,0.38942693]
[1641413907384,0.0057632,3635.4,3635.1,0.38942693]
[1641413907579,6.32e-05,3635.4,3635.2,0.328]
[1641413907780,3.9284,3638.5,3635.2,4.22997364]
[1641413907781,0.00519478,3635.3,3635.2,4.22997364]
[1641413908180,2.0,3638.0,3635.2,4.22997364]
[1641413908181,0.01225688,3637.8,3635.2,5.22997364]
[1641413908581,0.42720068,3637.4,3636.4,0.31951469]
[1641413908781,0.42720068,3637.4,3635.2,3.90197364]
[1641413908782,0.01234325,3637.0,3635.2,3.90197364]
[1641413909182,0.00858955,3636.9,3635.2,3.90197364]
[1641413909582,0.01234325,3637.0,3635.2,3.90197364]
[1641413909583,0.00802113,3636.8,3635.2,3.90197364]
[1641413909985,0.33545271,3636.7,3635.2,0.00107364]
[1641413910182,0.01274509,3636.2,3635.2,0.00107364]
[1641413910385,0.01274509,3636.2,3634.1,3.8355263]
[1641413910732,0.01274509,3636.2,3634.2,0.00675788]
[1641413910733,0.00404217,3636.1,3634.2,0.00675788]
[1641413911035,0.68779,3635.8,3634.2,0.00675788]
[1641413911231,0.98779,3635.8,3634.2,0.00675788]
[1641413911432,0.00176847,3635.7,3634.2,0.00675788]
[1641413911835,0.38974303,3634.7,3634.2,0.00675788]
[1641413912034,0.38974303,3634.7,3633.4,0.01130527]
[1641413912237,0.35914174,3634.6,3633.8,0.00903157]
[1641413912438,0.35914174,3634.6,3633.1,0.01301054]
[1641413912439,0.3,3634.5,3633.1,0.01301054]
[1641413912641,1.386,3634.3,3632.4,0.0169895]
[1641413912839,0.328,3634.2,3632.7,0.01212036]
[1641413913037,0.328,3634.2,3633.5,1.41318759]
[1641413913038,0.6,3634.1,3633.5,1.41318759]
[1641413913237,0.6,3634.1,3632.7,0.01212036]
[1641413913238,0.3,3634.1,3632.8,0.01471581]
[1641413913438,0.68805,3634.4,3633.6,0.01016842]
[1641413913639,0.687956,3635.1,3632.7,0.01212036]
[1641413913838,0.00397896,3634.3,3632.8,0.00454739]
[1641413914040,0.00795793,3635.0,3632.8,0.00454739]
[1641413914240,0.00341054,3634.2,3632.8,0.00454739]
[1641413914458,0.68807,3634.3,3632.8,0.00454739]
[1641413914664,0.69098042,3634.1,3632.8,0.00454739]
[1641413914864,0.00341054,3634.2,3632.8,0.00454739]
[1641413915062,0.00227369,3634.0,3632.8,0.00454739]
[1641413915266,0.00284212,3634.1,3632.8,0.00454739]
[1641413915463,0.00170527,3633.9,3632.8,0.00454739]
[1641413915662,0.3,3634.2,3632.8,0.00454739]
[1641413915663,0.33346893,3633.8,3632.8,0.00454739]
[1641413916167,0.63346893,3633.8,3632.9,0.00097437]
[1641413916566,0.63346893,3633.8,3633.0,0.00341054]
[1641413916767,2.09199503,3633.7,3633.0,0.00341054]
[1641413916966,2.10844892,3633.7,3633.0,0.00341054]
[1641413917165,1.3,3633.7,3633.0,0.00341054]
[1641413917569,0.3,3633.7,3633.0,0.00341054]
[1641413917771,0.3,3633.8,3633.0,0.00341054]
[1641413918508,0.9882048,3633.8,3633.0,0.00341054]
[1641413918708,1.02333327,3633.8,3633.0,0.00341054]
[1641413919310,0.43422805,3633.6,3633.0,0.00341054]
[1641413919525,0.73422805,3633.6,3633.0,0.00341054]
[1641413919712,0.3,3633.6,3633.0,0.00341054]
[1641413919910,0.328,3633.9,3633.0,0.00341054]
[1641413920114,0.6881524,3634.1,3633.0,0.00341054]
[1641413920318,0.00113685,3633.8,3633.0,0.00341054]
[1641413920513,0.00227369,3634.0,3633.0,0.00341054]
[1641413920813,0.01217495,3634.7,3633.5,0.40166301]
[1641413920814,1.64001379,3633.6,3633.5,0.40166301]
[1641413921036,1.379e-05,3633.6,3633.5,8.85435741]
[1641413921214,3.33318148,3634.2,3633.5,8.85435741]
[1641413921215,1.20798148,3634.2,3633.6,7.95]
[1641413921415,5.00849072,3635.3,3633.7,8.278]
[1641413921614,5.00849072,3635.3,3634.1,0.01220648]
[1641413922085,5.5018,3635.8,3634.8,1.29218748]
[1641413922480,0.00625266,3635.7,3634.8,1.29218748]
[1641413922782,0.00568424,3635.6,3634.8,1.29218748]
[1641413923185,0.00511582,3635.5,3634.8,1.29218748]
[1641413923584,0.00454739,3635.4,3634.9,0.41813284]
[1641413923983,5.5018,3635.8,3634.9,0.41813284]
[1641413923984,0.00397897,3635.3,3634.9,0.41813284]
[1641413924385,0.00341055,3635.2,3634.9,0.41813284]
[1641413924786,0.00284212,3635.1,3634.9,0.41813284]
[1641413925187,0.0022737,3635.0,3634.9,0.41813284]
[1641413925728,0.0022737,3635.0,3634.9,0.74613284]
[1641413925729,7.37e-05,3635.0,3634.9,0.74613284]
[1641413925918,5.5018,3635.8,3635.0,7.95]
[1641413926319,0.00177896,3635.7,3635.5,0.35028321]
[1641413926519,0.00177896,3635.7,3635.1,0.00163158]
[1641413926720,5.5018,3635.8,3635.1,0.00163158]
[1641413926721,0.00121054,3635.6,3635.1,0.00163158]
[1641413926919,0.00121054,3635.6,3634.5,0.328]
[1641413927121,0.00121054,3635.6,3634.6,0.0044737]
[1641413927722,0.00121054,3635.6,3634.2,0.00674739]
[1641413927921,0.00121054,3635.6,3634.1,0.00731581]
[1641413928121,0.01290945,3635.2,3633.5,0.01072635]
[1641413928522,0.6879693,3635.0,3634.0,1.19561532]
[1641413928724,0.3,3635.4,3634.3,0.43205608]
[1641413928923,0.00121054,3635.6,3634.3,0.43205608]
[1641413929122,0.00121054,3635.6,3634.4,0.00561054]
[1641413929123,3.25888244,3635.0,3634.4,0.00561054]
[1641413929764,4.08778804,3635.5,3634.6,10.73370044]
[1641413929963,4.08778804,3635.5,3635.0,0.68742]
[1641413929964,2.87078804,3635.5,3635.0,0.68742]
[1641413930165,2.87078804,3635.5,3634.9,0.01239815]
[1641413930364,0.00121054,3635.6,3635.1,0.00163158]
[1641413930568,0.00121054,3635.6,3634.4,1.328]
[1641413930569,0.00121054,3635.6,3635.0,0.0022]
[1641413930768,0.328,3635.5,3635.0,0.0022]
[1641413930970,0.328,3635.5,3634.5,0.00504212]
[1641413931168,0.628,3635.5,3634.5,0.00504212]
[1641413931369,0.628,3635.5,3633.6,0.01240758]
[1641413931567,0.628,3635.5,3633.7,0.00958951]
[1641413931768,0.68795,3635.0,3633.7,0.00958951]
[1641413931967,0.72633127,3635.0,3633.7,0.00958951]
[1641413932168,0.3,3634.9,3633.0,0.01356847]
[1641413932569,2.23216815,3635.0,3634.3,0.34750825]
[1641413932771,3.61816815,3635.0,3634.3,0.34750825]
[1641413932971,3.61816815,3635.0,3634.4,0.00561054]
[1641413932972,1.63216815,3635.0,3634.4,0.00561054]
[1641413933209,1.63216815,3635.0,3634.5,0.0125613]
[1641413933616,1.63216815,3635.0,3634.3,0.34750825]
[1641413933617,1.63216815,3635.0,3634.6,0.0044737]
[1641413933816,1.63216815,3634.7,3634.6,0.0044737]
[1641413934018,1.63216815,3634.7,3634.6,1.38335191]
[1641413934417,1.63216815,3634.7,3634.6,1.38782561]
[1641413934717,1.63216815,3635.2,3634.6,1.38782561]
[1641413935121,1.63216815,3635.2,3634.7,0.00390527]
[1641413935518,2.17568577,3635.6,3634.2,0.00674739]
[1641413935918,0.00121054,3635.6,3634.2,0.00674739]
[1641413936120,1.78250872,3634.6,3633.6,0.01015793]
[1641413936319,1.78250872,3634.6,3633.1,1.23160125]
[1641413936320,0.39650872,3634.6,3633.1,1.23160125]
[1641413936519,0.69650872,3634.6,3633.2,0.01243162]
[1641413936963,0.69650872,3634.6,3632.3,0.01255553]
[1641413936964,0.68808,3634.3,3633.0,0.01356847]
[1641413937164,0.3,3634.5,3633.0,0.01356847]
[1641413937364,4.4566,3635.3,3633.2,0.01239293]
[1641413937564,3.86811054,3635.6,3633.2,0.01239293]
[1641413937766,0.50121054,3635.6,3634.0,0.01270504]
[1641413937973,0.00121054,3635.6,3634.8,0.01298152]
[1641413938169,0.00121054,3635.6,3635.2,0.38495224]
[1641413938370,0.00121054,3635.6,3634.9,0.00276843]
[1641413938773,0.00121054,3635.6,3633.9,1.2906146]
[1641413938774,0.00121054,3635.6,3634.7,0.00390527]
[1641413938972,0.00121054,3635.6,3634.0,0.00788424]
[1641413939270,0.34323466,3635.3,3634.2,0.41511548]
[1641413939473,0.00121054,3635.6,3634.2,0.41511548]
[1641413939671,0.00121054,3635.6,3634.3,0.00617897]
[1641413939873,0.01242358,3635.0,3634.3,0.00617897]
[1641413940072,0.01242358,3635.0,3633.9,0.00845266]
[1641413940073,0.6880888,3634.6,3633.9,0.00845266]
[1641413940271,0.6880888,3634.6,3633.2,0.01243162]
[1641413940272,2.31853662,3634.5,3633.2,0.01243162]
[1641413940473,0.328,3634.4,3633.2,0.01243162]
[1641413940708,0.37875981,3633.7,3633.2,0.01243162]
[1641413940911,0.328,3634.2,3633.2,0.01243162]
[1641413941111,2.7525453,3634.0,3633.2,0.01243162]
[1641413941412,2.83275524,3634.0,3633.2,0.01243162]
[1641413941609,0.9881351,3634.0,3633.2,0.01243162]
[1641413941814,0.6881351,3634.0,3633.2,0.01243162]
[1641413942014,0.6881351,3634.0,3633.5,0.4350503]
[1641413942414,0.6881351,3634.0,3633.6,0.01015793]
[1641413942614,0.3,3633.9,3633.6,0.01015793]
[1641413942815,0.3,3633.9,3633.2,0.01243162]
[1641413942816,0.6881486,3633.6,3633.2,0.01243162]
[1641413943016,3.37668412,3633.9,3633.2,0.01243162]
[1641413943217,1.21229933,3633.9,3633.2,0.01243162]
[1641413943617,2.537,3635.2,3633.2,0.01243162]
[1641413943618,1.21229933,3633.8,3633.2,0.01243162]
[1641413943818,2.12228076,3633.7,3633.2,0.01243162]
[1641413944022,1.21229933,3633.8,3633.2,0.01243162]
[1641413944461,1.21229933,3634.1,3633.2,0.01243162]
[1641413944860,3.38267289,3634.1,3633.2,0.01243162]
[1641413945263,3.38267289,3634.1,3631.5,0.85595121]
[1641413945264,0.33942785,3632.6,3631.5,0.85595121]
[1641413945461,0.68819,3633.7,3631.5,0.85595121]
[1641413945462,1.37655,3633.3,3631.5,0.85595121]
[1641413945666,1.3763922,3633.5,3631.6,0.00909478]
[1641413945861,0.3,3633.3,3631.6,0.00909478]
[1641413946161,0.6882146,3633.1,3631.6,0.00909478]
[1641413946361,0.3,3633.0,3632.3,0.44754852]
[1641413946761,0.3,3633.1,3632.4,0.00454739]
[1641413946962,0.00113684,3633.4,3632.4,0.00454739]
[1641413947164,1.21229933,3633.0,3631.9,0.00738951]
[1641413947365,2.19885147,3632.9,3631.9,0.00738951]
[1641413947564,3.19885147,3632.9,3631.9,0.00738951]
[1641413947764,1.0,3632.9,3631.9,0.00738951]
[1641413948215,1.21229933,3632.8,3631.8,0.00795793]
[1641413948416,1.3766951,3632.7,3631.8,0.00795793]
[1641413948622,0.3,3632.6,3631.8,0.00795793]
[1641413948826,0.6,3632.6,3632.0,0.00100007]
[1641413949020,0.3,3632.6,3632.0,0.00100007]
[1641413949224,1.21229933,3632.5,3632.1,0.00625266]
[1641413949622,2.14640023,3632.5,3632.1,0.00625266]
[1641413950424,2.14640023,3632.5,3631.5,0.43912333]
[1641413950425,7.9,3632.4,3631.5,0.43912333]
[1641413950626,1.0,3632.3,3631.5,0.43912333]
[1641413950826,0.68846,3632.1,3631.6,0.00284212]
[1641413951024,0.98846,3632.1,3631.6,0.00284212]
[1641413951226,0.68855,3631.9,3631.6,0.00284212]
[1641413951431,8.228,3631.8,3631.5,6.545e-05]
[1641413951628,1.0,3631.7,3631.5,6.545e-05]
[1641413951831,4.77155,3631.7,3631.5,6.545e-05]
[1641413952058,0.6,3631.6,3631.5,6.545e-05]
[1641413952257,0.928,3631.6,3631.5,6.545e-05]
[1641413952460,0.928,3631.6,3630.2,0.35439746]
[1641413952657,0.68873,3630.8,3629.7,1.37613541]
[1641413952862,1.37746,3630.8,3630.6,0.00568423]
[1641413953063,0.3,3630.7,3630.6,0.00568423]
[1641413953465,0.3,3630.7,3628.7,4.57648026]
[1641413953466,0.1034002,3630.5,3628.7,4.57648026]
[1641413953665,0.1034002,3630.5,3628.8,0.388197]
[1641413953666,0.6888292,3630.3,3628.8,0.388197]
[1641413953863,0.6888292,3630.3,3628.8,0.39842863]
[1641413953864,0.03794359,3630.3,3628.8,0.39842863]
[1641413954064,0.68894,3629.7,3628.8,0.39842863]
[1641413954470,0.98894,3629.7,3628.8,0.39842863]
[1641413954967,0.98894,3629.7,3628.8,0.01023163]
[1641413954968,0.68899,3629.4,3628.8,0.01023163]
[1641413955165,1.01699,3629.4,3628.8,0.01023163]
[1641413955463,1.61699,3629.4,3628.4,0.01250532]
[1641413955716,7.9,3629.3,3628.3,5.07683458]
[1641413955914,0.68912,3629.0,3628.3,5.07683458]
[1641413956113,0.3,3629.0,3628.3,5.07683458]
[1641413956315,0.00284212,3628.9,3628.3,5.07683458]
[1641413956718,2.42661429,3630.6,3628.3,5.07683458]
[1641413956719,0.00227369,3628.8,3628.3,5.07683458]
[1641413957123,0.00170527,3628.7,3628.6,1.35362677]
[1641413958118,0.00170527,3628.7,3628.6,1.36584521]
[1641413958319,1.23368504,3630.1,3628.6,0.01221844]
[1641413958519,0.5,3630.1,3628.6,0.02295408]
[1641413958719,0.00738951,3630.0,3628.6,0.01073564]
[1641413959120,0.01233647,3630.2,3630.0,0.04261049]
[1641413959321,0.1034002,3630.5,3630.0,0.04261049]
[1641413959766,0.00113684,3630.2,3630.0,0.04261049]
[1641413960763,8.33488545,3630.1,3630.0,0.04261049]
[1641413960962,8.93488545,3630.1,3630.0,0.04261049]
[1641413961163,0.00113684,3630.2,3630.0,0.04261049]
[1641413962567,8.84069391,3630.1,3628.7,0.00867049]
[1641413962766,2.0,3630.0,3628.7,0.00867049]
[1641413962965,7.9,3629.2,3628.1,4.57648026]
[1641413963213,0.3206712,3628.6,3628.1,4.57648026]
[1641413963408,0.68915,3628.9,3628.4,0.00170527]
[1641413963609,0.3,3628.6,3628.4,0.00170527]
[1641413964009,0.6,3628.8,3628.4,0.00170527]
[1641413965313,0.6,3628.8,3628.3,5.959e-05]
[1641413965314,0.01286038,3628.5,3628.3,5.959e-05]
[1641413965511,0.01286038,3628.5,3626.9,6.17]
[1641413965512,8.728,3628.4,3626.9,6.17]
[1641413965712,0.68938,3627.7,3626.9,6.17]
[1641413965912,7.9,3627.5,3626.7,5.92018104]